[Event "Reykjavik Chess Congress 2019"]
[Site "Reykjavik"]
[Date "2019.01.09"]
[Round "2"]
[White "Olafsson, Thorvardur"]
[Black "Jonsson, Olafur Gisli"]
[Result "0-1"]
[ECO "B07"]
[WhiteElo "2199"]
[BlackElo "1806"]
[Annotator "ChessBase"]
[PlyCount "85"]
[EventDate "2019.01.09"]
[EventType "swiss"]
[EventCountry "ISL"]
[SourceTitle "playchess.com"]
[Source "ChessBase"]
[SourceQuality "1"]
[TimeControl "40/5400+30:900+30"]

1. e4 {[%emt 0:03:07]} d6 {[%emt 0:00:00]} 2. d4 {[%emt 0:00:12]} Nf6 {[%emt 0:00:00]} 3. Nc3 {[%emt 0:00:29]} c6 {[%emt 0:00:00]} 4. a4 {[%emt 0:00:59]} Nbd7 {[%emt 0:02:52]} 5. Nf3 {[%emt 0:02:40]} e5 {[%emt 0:00:17]} 6. Bc4 {[%emt 0:02:00]} Be7 {[%emt 0:00:28]} 7. O-O {[%emt 0:01:00]} O-O {[%emt 0:00:41]} 8. h3 {[%emt 0:02:06]} h6 {[%emt 0:03:40]} 9. Re1 {[%emt 0:03:28]} Qc7 {[%emt 0:04:25]} 10. Ba2 {[%emt 0:06:44]} b6 {[%emt 0:09:59]} 11. dxe5 {[%emt 0:04:07]} dxe5 {[%emt 0:02:02]} 12. Nh4 {[%emt 0:02:44]} Nc5 {[%emt 0:22:16]} 13. Qf3 {[%emt 0:12:04]} Be6 {[%emt 0:02:06]} 14. Nf5 {[%emt 0:04:28]} Kh7 {[%emt 0:10:03]} 15. b4 {[%emt 0:14:11]} Bxa2 {[%emt 0:03:32]} 16. Rxa2 {[%emt 0:01:59]} Ne6 {[%emt 0:01:14]} 17. Ne2 {[%emt 0:09:50]} Rg8 {[%emt 0:09:19]} 18. c3 {[%emt 0:03:35]} Rad8 {[%emt 0:01:21]} 19. Nxe7 {[%emt 0:02:24]} Qxe7 {[%emt 0:00:20]} 20. Qf5+ {[%emt 0:00:31]} Kh8 {[%emt 0:03:09]} 21. Qxe5 {[%emt 0:00:40]} Rd3 {[%emt 0:01:06]} 22. Nd4 {[%emt 0:11:56]} Qd7 {[%emt 0:03:13]} 23. Nxe6 {[%emt 0:02:59]} fxe6 {[%emt 0:00:06]} 24. Bxh6 {[%emt 0:02:38]} Rd8 {[%emt 0:00:49]} 25. Bg5 {[%emt 0:01:04]} Qf7 {[%emt 0:00:42]} 26. Qf4 {[%emt 0:01:58]} e5 {[%emt 0:03:42]} 27. Qh4+ {[%emt 0:00:02]} Kg8 {[%emt 0:00:08]} 28. Rc2 {[%emt 0:02:22]} R8d6 {[%emt 0:01:34]} 29. Bxf6 {[%emt 0:00:31]} gxf6 {[%emt 0:00:34]} 30. Qg4+ {[%emt 0:00:25]} Kf8 {[%emt 0:00:17]} 31. Qc8+ {[%emt 0:00:26]} Kg7 {[%emt 0:00:19]} 32. Kh2 {[%emt 0:00:45]} Qb3 {[%emt 0:00:16]} 33. Rce2 {[%emt 0:00:56]} Qxc3 {[%emt 0:03:06]} 34. b5 {[%emt 0:00:39]} cxb5 {[%emt 0:01:34]} 35. Qg4+ {[%emt 0:00:15]} Kf8 {[%emt 0:03:16]} 36. axb5 {[%emt 0:00:08]} Qb3 {[%emt 0:00:18]} 37. Ra1 {[%emt 0:00:50]} Rd7 {[%emt 0:01:48]} 38. Rea2 {[%emt 0:00:24]} Qf7 {[%emt 0:04:51]} 39. Qh4 {[%emt 0:00:58]} Qg7 {[%emt 0:00:25]} 40. Qg4 {[%emt 0:00:00]} Qh7 {[%emt 0:00:00]} 41. Rxa7 {[%emt 0:02:11]} Ke7 {[%emt 0:04:52]} 42. Rxd7+ {[%emt 0:00:30]} Rxd7 {[%emt 0:00:03]} 43. Qxd7+ {[%emt 0:00:17]} 0-1

[Event "Reykjavik Chess Congress 2019"]
[Site "Reykjavik"]
[Date "2019.01.09"]
[Round "2"]
[White "Petursson, Gudni"]
[Black "Kjartansson, David"]
[Result "0-1"]
[ECO "B20"]
[WhiteElo "2045"]
[BlackElo "2403"]
[Annotator "ChessBase"]
[PlyCount "106"]
[EventDate "2019.01.09"]
[EventType "swiss"]
[EventCountry "ISL"]
[SourceTitle "playchess.com"]
[Source "ChessBase"]
[SourceQuality "1"]
[TimeControl "40/5400+30:900+30"]

1. e4 {[%emt 0:00:00]} c5 {[%emt 0:00:00]} 2. b3 {[%emt 0:01:50]} Nc6 {[%emt 0:00:16]} 3. Bb2 {[%emt 0:00:07]} d6 {[%emt 0:00:28]} 4. Nf3 {[%emt 0:00:08]} Nf6 {[%emt 0:00:21]} 5. Nc3 {[%emt 0:00:07]} e5 {[%emt 0:00:38]} 6. Bb5 {[%emt 0:01:48]} Be7 {[%emt 0:00:24]} 7. Bxc6+ {[%emt 0:00:05]} bxc6 {[%emt 0:00:04]} 8. d3 {[%emt 0:00:12]} O-O {[%emt 0:00:16]} 9. h3 {[%emt 0:00:33]} h6 {[%emt 0:00:06]} 10. O-O {[%emt 0:00:14]} Nh7 {[%emt 0:01:07]} 11. Ne2 {[%emt 0:00:21]} f5 {[%emt 0:00:31]} 12. exf5 {[%emt 0:00:15]} Bxf5 {[%emt 0:00:17]} 13. Ng3 {[%emt 0:00:08]} Be6 {[%emt 0:00:17]} 14. Qe2 {[%emt 0:02:04]} Qd7 {[%emt 0:03:16]} 15. Nd2 {[%emt 0:00:44]} Rf7 {[%emt 0:02:31]} 16. Nc4 {[%emt 0:00:15]} Raf8 {[%emt 0:00:18]} 17. Rae1 {[%emt 0:00:48]} Ng5 {[%emt 0:01:18]} 18. Bc1 {[%emt 0:02:16]} Nxh3+ {[%emt 0:10:26]} 19. gxh3 {[%emt 0:00:11]} Bxh3 {[%emt 0:00:04]} 20. f3 {[%emt 0:01:28]} Bh4 {[%emt 0:02:13]} 21. Kh2 {[%emt 0:00:26]} Bxf1 {[%emt 0:00:57]} 22. Rxf1 {[%emt 0:00:10]} Qe6 {[%emt 0:01:16]} 23. Ne3 {[%emt 0:08:36]} Bg5 {[%emt 0:02:34]} 24. Ng2 {[%emt 0:17:05]} Bxc1 {[%emt 0:00:25]} 25. Rxc1 {[%emt 0:00:04]} Rxf3 {[%emt 0:00:16]} 26. Rf1 {[%emt 0:00:38]} Qg4 {[%emt 0:02:25]} 27. Rxf3 {[%emt 0:00:06]} Rxf3 {[%emt 0:00:39]} 28. Qe1 {[%emt 0:00:59]} h5 {[%emt 0:01:12]} 29. Ne4 {[%emt 0:00:33]} d5 {[%emt 0:05:04]} 30. Nf2 {[%emt 0:04:12]} Qg3+ {[%emt 0:07:10]} 31. Kg1 {[%emt 0:00:05]} Qg5 {[%emt 0:02:39]} 32. Qe2 {[%emt 0:00:27]} Rg3 {[%emt 0:00:43]} 33. Nh1 {[%emt 0:01:11]} Rg4 {[%emt 0:00:08]} 34. Kh2 {[%emt 0:00:20]} e4 {[%emt 0:02:55]} 35. Qf2 {[%emt 0:00:47]} Qe5+ {[%emt 0:00:23]} 36. Kh3 {[%emt 0:00:21]} Qe6 {[%emt 0:05:39]} 37. Kh2 {[%emt 0:00:10]} d4 {[%emt 0:00:36]} 38. dxe4 {[%emt 0:00:15]} Rxe4 {[%emt 0:00:27]} 39. Ng3 {[%emt 0:00:12]} Qe5 {[%emt 0:00:42]} 40. Qf3 {[%emt 0:00:00]} Rg4 {[%emt 0:00:00]} 41. Kh3 {[%emt 0:02:16]} Qe6 {[%emt 0:03:14]} 42. Kh2 {[%emt 0:00:33]} Qg6 {[%emt 0:01:54]} 43. Kh3 {[%emt 0:00:19]} Qe6 {[%emt 0:04:35]} 44. Kh2 {[%emt 0:00:29]} g6 {[%emt 0:02:02]} 45. Ne2 {[%emt 0:00:37]} Qe5+ {[%emt 0:00:47]} 46. Kh3 {[%emt 0:00:09]} Re4 {[%emt 0:10:28]} 47. Ng3 {[%emt 0:00:29]} Qe6+ {[%emt 0:00:18]} 48. Kh2 {[%emt 0:00:09]} Re5 {[%emt 0:00:41]} 49. a4 {[%emt 0:04:17]} Kg7 {[%emt 0:01:16]} 50. Qf1 {[%emt 0:02:53]} Qg4 {[%emt 0:01:40]} 51. Qf4 {[%emt 0:00:33]} Qxf4 {[%emt 0:01:07]} 52. Nxf4 {[%emt 0:00:04]} h4 {[%emt 0:00:41]} 53. Nf1 {[%emt 0:00:31]} Rf5 {[%emt 0:00:11]} 0-1

[Event "Reykjavik Chess Congress 2019"]
[Site "Reykjavik"]
[Date "2019.01.13"]
[Round "3"]
[White "Ptacnikova, Lenka"]
[Black "Birkisson, Bjorn Holm"]
[Result "1-0"]
[ECO "A06"]
[WhiteElo "2187"]
[BlackElo "2078"]
[Annotator "NA"]
[PlyCount "83"]
[EventDate "2019.01.09"]
[EventType "swiss"]
[EventCountry "ISL"]
[SourceTitle "playchess.com"]
[Source "ChessBase"]
[SourceQuality "1"]
[TimeControl "40/5400+30:900+30"]

1. c4 {[%emt 0:00:00]} e6 {[%emt 0:00:18]} 2. Nf3 {[%emt 0:00:00]} d5 {[%emt 0:00:25]} 3. e3 {[%emt 0:00:33]} Nf6 {[%emt 0:00:49]} 4. b3 {[%emt 0:05:18]} c5 {[%emt 0:02:05]} 5. Bb2 {[%emt 0:00:20]} Nc6 {[%emt 0:01:14]} 6. Be2 {[%emt 0:03:01]} d4 {[%emt 0:03:17]} 7. exd4 {[%emt 0:00:17]} cxd4 {[%emt 0:00:13]} 8. d3 {[%emt 0:00:02]} Be7 {[%emt 0:04:03]} 9. O-O {[%emt 0:02:22]} O-O {[%emt 0:00:52]} 10. Na3 {[%emt 0:04:03]} e5 {[%emt 0:02:38]} 11. Nc2 {[%emt 0:03:30]} Re8 {[%emt 0:02:04]} 12. Re1 {[%emt 0:01:48]} a5 {[%emt 0:10:37]} 13. a4 {[%emt 0:13:48]} Nd7 {[%emt 0:10:20]} 14. Na3 {[%emt 0:00:41]} Bb4 {[%emt 0:01:14]} 15. Rf1 {[%emt 0:00:50]} Nc5 {[%emt 0:03:56]} 16. Nb5 {[%emt 0:07:14]} Bf5 {[%emt 0:04:59]} 17. Ra2 {[%emt 0:05:46]} Re6 {[%emt 0:05:52]} 18. Kh1 {[%emt 0:02:37]} g5 {[%emt 0:06:21]} 19. Bc1 {[%emt 0:07:39]} Rg6 {[%emt 0:07:19]} 20. Ne1 {[%emt 0:04:27]} g4 {[%emt 0:05:45]} 21. Kg1 {[%emt 0:10:49]} Qd7 {[%emt 0:02:19]} 22. g3 {[%emt 0:00:44]} e4 {[%emt 0:13:02]} 23. dxe4 {[%emt 0:00:29]} Bxe4 {[%emt 0:01:51]} 24. f3 {[%emt 0:00:47]} d3 {[%emt 0:03:05]} 25. fxe4 {[%emt 0:01:12]} dxe2 {[%emt 0:00:59]} 26. Qxe2 {[%emt 0:00:03]} Bxe1 {[%emt 0:00:35]} 27. Rxe1 {[%emt 0:01:11]} Ne5 {[%emt 0:00:08]} 28. Rd1 {[%emt 0:01:28]} Qe7 {[%emt 0:01:58]} 29. Ba3 {[%emt 0:04:46]} Nf3+ {[%emt 0:00:33]} 30. Kg2 {[%emt 0:00:22]} Rh6 {[%emt 0:01:45]} 31. h4 {[%emt 0:00:39]} Nxh4+ {[%emt 0:00:43]} 32. gxh4 {[%emt 0:00:19]} Qxh4 {[%emt 0:00:08]} 33. Bxc5 {[%emt 0:02:05]} Qh3+ {[%emt 0:01:51]} 34. Kf2 {[%emt 0:01:10]} Rf6+ {[%emt 0:02:24]} 35. Kg1 {[%emt 0:03:55]} Rf3 {[%emt 0:00:07]} 36. Qh2 {[%emt 0:00:13]} Rg3+ {[%emt 0:00:51]} 37. Kh1 {[%emt 0:00:45]} Rxb3 {[%emt 0:00:51]} 38. Qxh3 {[%emt 0:00:26]} Rxh3+ {[%emt 0:00:06]} 39. Kg2 {[%emt 0:00:08]} Rc8 {[%emt 0:00:26]} 40. Rd5 {[%emt 0:00:00]} h5 {[%emt 0:00:00]} 41. Nd6 {[%emt 0:03:40]} Rc6 {[%emt 0:00:55]} 42. Rb2 {[%emt 0:00:32]} 1-0

[Event "Reykjavik Chess Congress 2019"]
[Site "Reykjavik"]
[Date "2019.01.13"]
[Round "3"]
[White "Fridjonsson, Julius"]
[Black "Bjornsson, Sigurbjorn"]
[Result "0-1"]
[ECO "B10"]
[WhiteElo "2159"]
[BlackElo "2296"]
[Annotator "NA"]
[PlyCount "68"]
[EventDate "2019.01.09"]
[EventType "swiss"]
[EventCountry "ISL"]
[SourceTitle "playchess.com"]
[Source "ChessBase"]
[SourceQuality "1"]
[TimeControl "40/5400+30:900+30"]

1. c4 {[%emt 0:00:00]} c6 {[%emt 0:00:00]} 2. e4 {[%emt 0:00:03]} d5 {[%emt 0:00:00]} 3. exd5 {[%emt 0:00:08]} cxd5 {[%emt 0:00:04]} 4. cxd5 {[%emt 0:00:15]} Nf6 {[%emt 0:00:22]} 5. Qa4+ {[%emt 0:00:37]} Nbd7 {[%emt 0:03:09]} 6. Nc3 {[%emt 0:00:43]} g6 {[%emt 0:00:34]} 7. Nf3 {[%emt 0:01:49]} Bg7 {[%emt 0:00:17]} 8. Bc4 {[%emt 0:02:21]} O-O {[%emt 0:00:25]} 9. Qb3 {[%emt 0:00:50]} Nb6 {[%emt 0:03:45]} 10. d3 {[%emt 0:00:49]} Bg4 {[%emt 0:05:57]} 11. Ne5 {[%emt 0:12:07]} Qd6 {[%emt 0:07:16]} 12. f4 {[%emt 0:12:17]} Qc5 {[%emt 0:10:50]} 13. h3 {[%emt 0:03:19]} Bf5 {[%emt 0:00:44]} 14. g4 {[%emt 0:00:23]} Bc8 {[%emt 0:03:34]} 15. Ke2 {[%emt 0:09:18]} Nfd7 {[%emt 0:14:12]} 16. Be3 {[%emt 0:03:32]} Qc7 {[%emt 0:02:06]} 17. Nf3 {[%emt 0:04:10]} Nxc4 {[%emt 0:03:03]} 18. dxc4 {[%emt 0:05:05]} Nc5 {[%emt 0:01:29]} 19. Qc2 {[%emt 0:08:54]} Bxc3 {[%emt 0:11:07]} 20. bxc3 {[%emt 0:00:48]} b6 {[%emt 0:00:29]} 21. Nd4 {[%emt 0:01:11]} Ba6 {[%emt 0:02:34]} 22. Nb5 {[%emt 0:00:15]} Bxb5 {[%emt 0:03:14]} 23. cxb5 {[%emt 0:00:11]} e6 {[%emt 0:01:13]} 24. Kf3 {[%emt 0:08:30]} exd5 {[%emt 0:03:57]} 25. Bd4 {[%emt 0:00:20]} Ne6 {[%emt 0:02:06]} 26. Be5 {[%emt 0:00:09]} Qc5 {[%emt 0:01:03]} 27. Qd3 {[%emt 0:00:24]} Rac8 {[%emt 0:05:00]} 28. g5 {[%emt 0:00:52]} d4 {[%emt 0:02:07]} 29. cxd4 {[%emt 0:03:56]} Qd5+ {[%emt 0:00:06]} 30. Kg3 {[%emt 0:01:41]} Nc5 {[%emt 0:01:49]} 31. Qf3 {[%emt 0:01:04]} Ne4+ {[%emt 0:00:21]} 32. Kh4 {[%emt 0:00:12]} Rc3 {[%emt 0:00:35]} 33. Qg2 {[%emt 0:00:49]} Nd6 {[%emt 0:00:58]} 34. Rhg1 {[%emt 0:01:00]} Nf5+ {[%emt 0:00:15]} 0-1

[Event "Reykjavik Chess Congress 2019"]
[Site "Reykjavik"]
[Date "2019.01.13"]
[Round "3"]
[White "Viglundsson, Bjorgvin"]
[Black "Olafsson, Thorvardur"]
[Result "1/2-1/2"]
[ECO "E12"]
[WhiteElo "2092"]
[BlackElo "2199"]
[Annotator "NA"]
[PlyCount "72"]
[EventDate "2019.01.09"]
[EventType "swiss"]
[EventCountry "ISL"]
[SourceTitle "playchess.com"]
[Source "ChessBase"]
[SourceQuality "1"]
[TimeControl "40/5400+30:900+30"]

1. d4 {[%emt 0:00:00]} Nf6 {[%emt 0:00:00]} 2. Nf3 {[%emt 0:00:00]} b6 {[%emt 0:00:46]} 3. c4 {[%emt 0:00:43]} e6 {[%emt 0:01:06]} 4. a3 {[%emt 0:01:17]} Bb7 {[%emt 0:05:17]} 5. Nc3 {[%emt 0:01:27]} d5 {[%emt 0:04:40]} 6. Bg5 {[%emt 0:01:33]} Be7 {[%emt 0:06:34]} 7. e3 {[%emt 0:00:33]} Nbd7 {[%emt 0:02:27]} 8. Bd3 {[%emt 0:00:48]} h6 {[%emt 0:04:36]} 9. Bh4 {[%emt 0:01:31]} O-O {[%emt 0:01:02]} 10. O-O {[%emt 0:00:16]} c5 {[%emt 0:04:19]} 11. Qe2 {[%emt 0:06:21]} Ne4 {[%emt 0:08:27]} 12. Bxe7 {[%emt 0:03:50]} Nxc3 {[%emt 0:01:59]} 13. bxc3 {[%emt 0:02:10]} Qxe7 {[%emt 0:00:12]} 14. cxd5 {[%emt 0:01:15]} Bxd5 {[%emt 0:03:21]} 15. e4 {[%emt 0:02:07]} Bb7 {[%emt 0:02:47]} 16. a4 {[%emt 0:02:08]} cxd4 {[%emt 0:15:10]} 17. cxd4 {[%emt 0:00:07]} Nb8 {[%emt 0:07:19]} 18. a5 {[%emt 0:04:07]} bxa5 {[%emt 0:01:26]} 19. Rxa5 {[%emt 0:03:50]} Nc6 {[%emt 0:01:25]} 20. Ra4 {[%emt 0:00:49]} Nb4 {[%emt 0:03:41]} 21. Rfa1 {[%emt 0:02:40]} Bc6 {[%emt 0:03:14]} 22. Ra5 {[%emt 0:01:36]} Rfb8 {[%emt 0:02:00]} 23. Ne5 {[%emt 0:04:18]} Be8 {[%emt 0:09:34]} 24. h3 {[%emt 0:05:58]} Qd6 {[%emt 0:05:36]} 25. Qe3 {[%emt 0:06:12]} Rd8 {[%emt 0:02:30]} 26. Nf3 {[%emt 0:05:21]} Qb6 {[%emt 0:01:32]} 27. Bb1 {[%emt 0:05:07]} a6 {[%emt 0:00:55]} 28. Qa3 {[%emt 0:08:15]} Rac8 {[%emt 0:00:50]} 29. Bd3 {[%emt 0:02:12]} Nxd3 {[%emt 0:00:45]} 30. Qxd3 {[%emt 0:01:07]} Bb5 {[%emt 0:00:07]} 31. Qd2 {[%emt 0:02:42]} Qc6 {[%emt 0:00:29]} 32. Qf4 {[%emt 0:01:10]} Qc7 {[%emt 0:00:34]} 33. Qe3 {[%emt 0:06:36]} Qc3 {[%emt 0:00:28]} 34. Qf4 {[%emt 0:00:20]} Qc7 {[%emt 0:00:14]} 35. Qe3 {[%emt 0:00:09]} Qc3 {[%emt 0:01:08]} 36. Qf4 {[%emt 0:00:07]} Qc7 {[%emt 0:00:31]} 1/2-1/2

[Event "Reykjavik Chess Congress 2019"]
[Site "Reykjavik"]
[Date "2019.01.13"]
[Round "3"]
[White "Jonsson, Gauti Pall"]
[Black "Ingvason, Johann"]
[Result "0-1"]
[ECO "A20"]
[WhiteElo "2070"]
[BlackElo "2175"]
[Annotator "NA"]
[PlyCount "168"]
[EventDate "2019.01.09"]
[EventType "swiss"]
[EventCountry "ISL"]
[SourceTitle "playchess.com"]
[Source "ChessBase"]
[SourceQuality "1"]
[TimeControl "40/5400+30:900+30"]

1. c4 {[%emt 0:02:11]} e5 {[%emt 0:00:00]} 2. g3 {[%emt 0:00:19]} Nf6 {[%emt 0:00:19]} 3. Bg2 {[%emt 0:03:01]} Nc6 {[%emt 0:00:09]} 4. Nc3 {[%emt 0:00:37]} Bb4 {[%emt 0:03:48]} 5. e4 {[%emt 0:01:54]} d6 {[%emt 0:03:56]} 6. Nge2 {[%emt 0:03:26]} Bg4 {[%emt 0:06:01]} 7. h3 {[%emt 0:02:03]} Bxc3 {[%emt 0:04:45]} 8. bxc3 {[%emt 0:06:35]} Be6 {[%emt 0:02:05]} 9. d3 {[%emt 0:02:20]} h5 {[%emt 0:02:45]} 10. Be3 {[%emt 0:07:10]} b6 {[%emt 0:02:32]} 11. f4 {[%emt 0:07:40]} Qc8 {[%emt 0:06:26]} 12. Qd2 {[%emt 0:13:02]} Na5 {[%emt 0:03:54]} 13. Rb1 {[%emt 0:09:13]} c5 {[%emt 0:01:22]} 14. Kf2 {[%emt 0:09:40]} Rb8 {[%emt 0:12:08]} 15. Kg1 {[%emt 0:02:27]} a6 {[%emt 0:01:45]} 16. Kh2 {[%emt 0:00:37]} b5 {[%emt 0:13:31]} 17. cxb5 {[%emt 0:01:23]} axb5 {[%emt 0:00:37]} 18. Rb2 {[%emt 0:03:11]} Nc6 {[%emt 0:02:50]} 19. Rhb1 {[%emt 0:01:45]} Qa6 {[%emt 0:01:50]} 20. d4 {[%emt 0:01:46]} Na5 {[%emt 0:02:09]} 21. dxe5 {[%emt 0:03:44]} Nc4 {[%emt 0:01:50]} 22. Qc1 {[%emt 0:00:47]} dxe5 {[%emt 0:06:55]} 23. Bxc5 {[%emt 0:01:21]} Nxb2 {[%emt 0:05:26]} 24. Qxb2 {[%emt 0:00:47]} Qxa2 {[%emt 0:03:04]} 25. fxe5 {[%emt 0:01:50]} Qxb2 {[%emt 0:00:58]} 26. Rxb2 {[%emt 0:00:06]} Nd7 {[%emt 0:00:34]} 27. Bd6 {[%emt 0:00:11]} Rb6 {[%emt 0:00:15]} 28. Nf4 {[%emt 0:02:24]} Bc4 {[%emt 0:02:15]} 29. Nd5 {[%emt 0:01:00]} Rh6 {[%emt 0:03:08]} 30. Nxb6 {[%emt 0:03:03]} Nxb6 {[%emt 0:00:02]} 31. Rb1 {[%emt 0:04:03]} Na4 {[%emt 0:00:57]} 32. Rc1 {[%emt 0:01:27]} Kd7 {[%emt 0:02:24]} 33. Bf3 {[%emt 0:01:01]} Kc6 {[%emt 0:00:43]} 34. Bf8 {[%emt 0:00:54]} Rh7 {[%emt 0:00:40]} 35. g4 {[%emt 0:01:32]} hxg4 {[%emt 0:00:24]} 36. Bxg4 {[%emt 0:00:08]} g6 {[%emt 0:01:09]} 37. Bb4 {[%emt 0:00:24]} Nb2 {[%emt 0:02:10]} 38. Ra1 {[%emt 0:00:39]} Nd3 {[%emt 0:00:42]} 39. Ra7 {[%emt 0:02:52]} Nxe5 {[%emt 0:00:48]} 40. Kg3 {[%emt 0:00:00]} Nxg4 {[%emt 0:00:00]} 41. hxg4 {[%emt 0:00:51]} Be6 {[%emt 0:03:12]} 42. Kf4 {[%emt 0:03:43]} Bxg4 {[%emt 0:03:10]} 43. Ba5 {[%emt 0:02:21]} Be6 {[%emt 0:07:22]} 44. Rc7+ {[%emt 0:01:37]} Kd6 {[%emt 0:00:03]} 45. Rb7 {[%emt 0:01:20]} Rh4+ {[%emt 0:01:10]} 46. Kf3 {[%emt 0:01:18]} Bc4 {[%emt 0:01:31]} 47. Ra7 {[%emt 0:03:15]} Ke5 {[%emt 0:02:42]} 48. Bc7+ {[%emt 0:00:38]} Ke6 {[%emt 0:00:03]} 49. Bg3 {[%emt 0:01:48]} Rh1 {[%emt 0:00:20]} 50. Ra6+ {[%emt 0:00:36]} Kd7 {[%emt 0:00:20]} 51. Rb6 {[%emt 0:00:41]} Rd1 {[%emt 0:00:29]} 52. Be5 {[%emt 0:00:27]} Rg1 {[%emt 0:00:42]} 53. Kf2 {[%emt 0:00:53]} Rh1 {[%emt 0:01:29]} 54. Kf3 {[%emt 0:00:27]} Rd1 {[%emt 0:01:17]} 55. Kf4 {[%emt 0:00:23]} Rg1 {[%emt 0:00:24]} 56. Bf6 {[%emt 0:00:53]} Kc7 {[%emt 0:00:14]} 57. Ra6 {[%emt 0:00:43]} Rf1+ {[%emt 0:00:37]} 58. Ke5 {[%emt 0:00:23]} Kb7 {[%emt 0:00:31]} 59. Rd6 {[%emt 0:01:05]} Rf3 {[%emt 0:00:30]} 60. Kd4 {[%emt 0:00:23]} Rg3 {[%emt 0:00:29]} 61. Kc5 {[%emt 0:00:35]} Rd3 {[%emt 0:01:00]} 62. Bd4 {[%emt 0:02:35]} Kc7 {[%emt 0:00:33]} 63. Be5 {[%emt 0:00:27]} Rxd6 {[%emt 0:00:12]} 64. Bxd6+ {[%emt 0:00:05]} Kd7 65. Bf4 {[%emt 0:00:22]} Ke6 {[%emt 0:00:42]} 66. Kd4 {[%emt 0:00:09]} Kf6 {[%emt 0:00:36]} 67. Ke3 {[%emt 0:00:20]} g5 {[%emt 0:00:09]} 68. Bg3 {[%emt 0:00:21]} Kg6 {[%emt 0:00:08]} 69. Kf3 {[%emt 0:00:45]} Bb3 {[%emt 0:00:52]} 70. Bh2 {[%emt 0:01:29]} Bd1+ {[%emt 0:00:23]} 71. Kg3 {[%emt 0:00:25]} Kf6 {[%emt 0:00:12]} 72. Kf2 {[%emt 0:00:08]} Kg6 {[%emt 0:01:08]} 73. Bd6 {[%emt 0:00:39]} Kh5 {[%emt 0:00:10]} 74. Kg3 {[%emt 0:00:26]} Bc2 {[%emt 0:00:06]} 75. e5 {[%emt 0:00:15]} Kg6 {[%emt 0:00:16]} 76. Be7 {[%emt 0:00:31]} Kf5 {[%emt 0:00:05]} 77. Bf6 {[%emt 0:00:04]} Bd1 {[%emt 0:00:16]} 78. Bg7 {[%emt 0:00:30]} Ke4 {[%emt 0:00:23]} 79. Bh6 {[%emt 0:00:35]} Kd3 {[%emt 0:00:59]} 80. Bg7 {[%emt 0:00:03]} Bb3 {[%emt 0:01:01]} 81. Bf6 {[%emt 0:01:20]} Be6 {[%emt 0:00:36]} 82. Bxg5 {[%emt 0:00:15]} Kxc3 {[%emt 0:00:07]} 83. Kf2 {[%emt 0:00:21]} b4 {[%emt 0:00:15]} 84. Ke1 {[%emt 0:00:04]} Kc2 0-1

[Event "Reykjavik Chess Congress 2019"]
[Site "Reykjavik"]
[Date "2019.01.20"]
[Round "5"]
[White "Bjornsson, Sigurbjorn"]
[Black "Kjartansson, David"]
[Result "0-1"]
[ECO "B32"]
[WhiteElo "2296"]
[BlackElo "2403"]
[Annotator "ChessBase"]
[PlyCount "78"]
[EventDate "2019.01.09"]
[EventType "swiss"]
[EventCountry "ISL"]
[SourceTitle "playchess.com"]
[Source "ChessBase"]
[SourceQuality "1"]
[TimeControl "40/5400+30:900+30"]

1. e4 {[%emt 0:00:00]} c5 {[%emt 0:02:57]} 2. Nf3 {[%emt 0:00:00]} Nc6 {[%emt 0:00:41]} 3. d4 {[%emt 0:00:00]} cxd4 {[%emt 0:00:08]} 4. Nxd4 {[%emt 0:00:00]} Qb6 {[%emt 0:01:04]} 5. Nb3 {[%emt 0:00:05]} Nf6 {[%emt 0:00:42]} 6. Nc3 {[%emt 0:00:28]} e6 {[%emt 0:00:33]} 7. Qe2 {[%emt 0:00:51]} Bb4 {[%emt 0:01:35]} 8. Bd2 {[%emt 0:00:04]} a5 {[%emt 0:04:06]} 9. a3 {[%emt 0:03:48]} Bxc3 {[%emt 0:10:26]} 10. Bxc3 {[%emt 0:00:11]} e5 {[%emt 0:00:36]} 11. O-O-O {[%emt 0:12:20]} O-O {[%emt 0:00:42]} 12. g4 {[%emt 0:02:08]} d6 {[%emt 0:09:13]} 13. g5 {[%emt 0:09:58]} Ne8 {[%emt 0:02:05]} 14. h4 {[%emt 0:07:25]} Be6 {[%emt 0:00:41]} 15. f4 {[%emt 0:09:36]} Rc8 {[%emt 0:13:41]} 16. Kb1 {[%emt 0:05:59]} exf4 {[%emt 0:17:34]} 17. Nd4 {[%emt 0:10:13]} Ne5 {[%emt 0:15:26]} 18. Qd2 {[%emt 0:05:32]} Ra8 {[%emt 0:15:44]} 19. Nf5 {[%emt 0:09:50]} Bxf5 {[%emt 0:00:32]} 20. exf5 {[%emt 0:00:10]} Qc6 {[%emt 0:00:39]} 21. Rh3 {[%emt 0:07:51]} Qe4 {[%emt 0:00:40]} 22. f6 {[%emt 0:02:48]} gxf6 {[%emt 0:00:25]} 23. Bd3 {[%emt 0:01:09]} Nxd3 {[%emt 0:00:23]} 24. Rxd3 {[%emt 0:00:37]} Ng7 {[%emt 0:00:50]} 25. Re1 {[%emt 0:01:39]} Qf5 {[%emt 0:00:24]} 26. Rd5 {[%emt 0:01:09]} Qg4 {[%emt 0:00:19]} 27. Qd4 {[%emt 0:00:55]} Nh5 {[%emt 0:00:33]} 28. Rg1 {[%emt 0:03:09]} Qxh4 {[%emt 0:00:26]} 29. Rxd6 {[%emt 0:03:07]} Rac8 {[%emt 0:00:47]} 30. Bxa5 {[%emt 0:02:39]} Rfe8 {[%emt 0:00:17]} 31. Bc3 {[%emt 0:00:16]} Rxc3 {[%emt 0:00:43]} 32. Qxc3 {[%emt 0:00:30]} fxg5 {[%emt 0:00:14]} 33. Qa5 {[%emt 0:01:07]} Ng3 {[%emt 0:00:16]} 34. Rgd1 {[%emt 0:00:24]} Ne4 {[%emt 0:00:58]} 35. Rd8 {[%emt 0:00:28]} Rxd8 {[%emt 0:00:14]} 36. Rxd8+ {[%emt 0:00:03]} Kg7 {[%emt 0:00:05]} 37. Qe5+ {[%emt 0:01:12]} Nf6 {[%emt 0:00:04]} 38. Rd6 {[%emt 0:00:14]} Qh6 {[%emt 0:00:23]} 39. Rd5 {[%emt 0:00:30]} Qh1+ {[%emt 0:00:13]} 0-1